[Event "Titled Tuesday Blitz November 22 Early 2022"]
[White "Kiseljova, Marya"]
[Black "Szyszylo, Rafal"]
[WhiteFideId "4155009"]
[BlackFideId "1109626"]
[WhiteElo "1907"]
[BlackElo "1981"]
[Result "0-1"]
[Round "04"]
[TimeControl "180+1"]
[Date "2022.11.23"]
[WhiteClock "0:00:06"]
[BlackClock "0:00:21"]

1. d4 {[%clk 0:03:00]}  d6 {[%clk 0:02:55]} 2. Nf3 {[%clk 0:02:56]}  g6 {[%clk 0:02:54]} 3. Nc3 {[%clk 0:02:49]}  Bg7 {[%clk 0:02:52]} 4. h3 {[%clk 0:02:47]}  Nf6 {[%clk 0:02:51]} 5. e4 {[%clk 0:02:46]}  O-O {[%clk 0:02:50]} 6. Be2 {[%clk 0:02:42]}  c6 {[%clk 0:02:50]} 7. Bg5 {[%clk 0:02:33]}  b5 {[%clk 0:02:45]} 8. e5 {[%clk 0:02:13]}  Ne8 {[%clk 0:02:43]} 9. O-O {[%clk 0:01:57]}  Nc7 {[%clk 0:02:26]} 10. exd6 {[%clk 0:01:49]}  Qxd6 {[%clk 0:02:25]} 11. Ne4 {[%clk 0:01:50]}  Qd8 {[%clk 0:02:21]} 12. c3 {[%clk 0:01:47]}  Nd7 {[%clk 0:02:16]} 13. a4 {[%clk 0:01:42]}  a6 {[%clk 0:02:06]} 14. axb5 {[%clk 0:01:40]}  axb5 {[%clk 0:02:06]} 15. Rxa8 {[%clk 0:01:37]}  Nxa8 {[%clk 0:02:07]} 16. Qa1 {[%clk 0:01:32]}  Nc7 {[%clk 0:01:34]} 17. Nfd2 {[%clk 0:01:01]}  Ne6 {[%clk 0:01:15]} 18. Be3 {[%clk 0:00:55]}  Bb7 {[%clk 0:01:13]} 19. Nb3 {[%clk 0:00:54]}  f5 {[%clk 0:01:08]} 20. Nec5 {[%clk 0:00:46]}  Ndxc5 {[%clk 0:01:01]} 21. Nxc5 {[%clk 0:00:45]}  Nxc5 {[%clk 0:01:01]} 22. dxc5 {[%clk 0:00:46]}  f4 {[%clk 0:00:48]} 23. Qa2+ {[%clk 0:00:42]}  Kh8 {[%clk 0:00:48]} 24. Rd1 {[%clk 0:00:41]}  Qc7 {[%clk 0:00:40]} 25. Bd4 {[%clk 0:00:35]}  e5 {[%clk 0:00:39]} 26. Qe6 {[%clk 0:00:14]}  exd4 {[%clk 0:00:37]} 27. cxd4 {[%clk 0:00:14]}  Bc8 {[%clk 0:00:36]} 28. Qb3 {[%clk 0:00:13]}  Qe7 {[%clk 0:00:31]} 29. Bf3 {[%clk 0:00:12]}  Be6 {[%clk 0:00:31]} 30. Qc2 {[%clk 0:00:11]}  Bd5 {[%clk 0:00:30]} 31. Bg4 {[%clk 0:00:10]}  Qe4 {[%clk 0:00:28]} 32. Qxe4 {[%clk 0:00:09]}  Bxe4 {[%clk 0:00:28]} 33. f3 {[%clk 0:00:09]}  Bc2 {[%clk 0:00:23]} 34. Rd2 {[%clk 0:00:09]}  Bb3 {[%clk 0:00:22]} 35. Bd7 {[%clk 0:00:08]}  Bd5 {[%clk 0:00:22]} 36. Kf2 {[%clk 0:00:08]}  Rd8 {[%clk 0:00:21]} 37. Bg4 {[%clk 0:00:06]}  h5 {[%clk 0:00:21]} 38. Re2 {[%clk 0:00:06]}  hxg4 {[%clk 0:00:21]} 39. hxg4 {[%clk 0:00:06]}  Bxd4+ {[%clk 0:00:21]} 40. Kf1 {[%clk 0:00:06]}  Bxc5 {[%clk 0:00:21]} 0-1


[Site "https://www.chess.com"]

[Event "Titled Tuesday Blitz November 22 Early 2022"]
[White "Kodinets, Konstantin L."]
[Black "Topalov, Aleksandar"]
[WhiteFideId "4122011"]
[BlackFideId "925659"]
[WhiteElo "2447"]
[BlackElo "2179"]
[Result "1-0"]
[Round "04"]
[TimeControl "180+1"]
[Date "2022.11.23"]
[WhiteClock "0:00:14"]
[BlackClock "0:00:01"]

1. d4 {[%clk 0:03:00]}  Nf6 {[%clk 0:02:59]} 2. Nf3 {[%clk 0:03:01]}  g6 {[%clk 0:02:58]} 3. Bg5 {[%clk 0:03:02]}  Bg7 {[%clk 0:02:57]} 4. Nbd2 {[%clk 0:03:02]}  d5 {[%clk 0:02:57]} 5. e3 {[%clk 0:03:02]}  c6 {[%clk 0:02:57]} 6. Be2 {[%clk 0:03:02]}  h6 {[%clk 0:02:56]} 7. Bh4 {[%clk 0:03:01]}  g5 {[%clk 0:02:56]} 8. Bg3 {[%clk 0:03:01]}  Nh5 {[%clk 0:02:57]} 9. c4 {[%clk 0:03:00]}  Nxg3 {[%clk 0:02:56]} 10. hxg3 {[%clk 0:03:00]}  dxc4 {[%clk 0:02:54]} 11. Nxc4 {[%clk 0:02:59]}  Be6 {[%clk 0:02:44]} 12. a3 {[%clk 0:02:54]}  Nd7 {[%clk 0:02:44]} 13. b4 {[%clk 0:02:53]}  a5 {[%clk 0:02:40]} 14. Nxa5 {[%clk 0:02:52]}  Qc7 {[%clk 0:02:27]} 15. Bc4 {[%clk 0:02:30]}  Bg4 {[%clk 0:02:19]} 16. Qc2 {[%clk 0:02:25]}  Nb6 {[%clk 0:02:03]} 17. Bb3 {[%clk 0:02:19]}  e6 {[%clk 0:01:57]} 18. Rc1 {[%clk 0:02:17]}  Nd7 {[%clk 0:01:45]} 19. O-O {[%clk 0:02:12]}  O-O {[%clk 0:01:40]} 20. Qa2 {[%clk 0:01:55]}  Nf6 {[%clk 0:01:34]} 21. Ne5 {[%clk 0:01:54]}  Bf5 {[%clk 0:01:31]} 22. f3 {[%clk 0:01:48]}  Rfd8 {[%clk 0:01:27]} 23. g4 {[%clk 0:01:48]}  Bh7 {[%clk 0:01:27]} 24. Rfd1 {[%clk 0:01:19]}  Nd5 {[%clk 0:01:26]} 25. Bxd5 {[%clk 0:00:59]}  Rxd5 {[%clk 0:01:25]} 26. Nexc6 {[%clk 0:00:34]}  bxc6 {[%clk 0:01:23]} 27. Nxc6 {[%clk 0:00:34]}  Qd7 {[%clk 0:01:10]} 28. a4 {[%clk 0:00:29]}  Bg6 {[%clk 0:01:01]} 29. b5 {[%clk 0:00:29]}  Rxb5 {[%clk 0:00:59]} 30. Qc4 {[%clk 0:00:25]}  Rd5 {[%clk 0:00:56]} 31. Rb1 {[%clk 0:00:25]}  Kh7 {[%clk 0:00:53]} 32. Rb5 {[%clk 0:00:24]}  Rc8 {[%clk 0:00:51]} 33. Rc1 {[%clk 0:00:23]}  Rd6 {[%clk 0:00:50]} 34. Rc5 {[%clk 0:00:23]}  Rd5 {[%clk 0:00:39]} 35. Rxd5 {[%clk 0:00:19]}  exd5 {[%clk 0:00:38]} 36. Qb5 {[%clk 0:00:19]}  Qe6 {[%clk 0:00:37]} 37. Kf2 {[%clk 0:00:19]}  Re8 {[%clk 0:00:35]} 38. Rc3 {[%clk 0:00:19]}  Ra8 {[%clk 0:00:24]} 39. Nb4 {[%clk 0:00:19]}  Bf8 {[%clk 0:00:22]} 40. Nxd5 {[%clk 0:00:19]}  Qa6 {[%clk 0:00:17]} 41. Nf6+ {[%clk 0:00:15]}  Kg7 {[%clk 0:00:16]} 42. Qe5 {[%clk 0:00:15]}  Bd6 {[%clk 0:00:12]} 43. Ne8+ {[%clk 0:00:15]}  Kf8 {[%clk 0:00:12]} 44. Qxd6+ {[%clk 0:00:15]}  Qxd6 {[%clk 0:00:11]} 45. Nxd6 {[%clk 0:00:15]}  Rxa4 {[%clk 0:00:11]} 46. Nf5 {[%clk 0:00:15]}  Bxf5 {[%clk 0:00:10]} 47. gxf5 {[%clk 0:00:16]}  Ra2+ {[%clk 0:00:10]} 48. Kg3 {[%clk 0:00:16]}  h5 {[%clk 0:00:09]} 49. e4 {[%clk 0:00:16]}  f6 {[%clk 0:00:08]} 50. d5 {[%clk 0:00:16]}  Ke7 {[%clk 0:00:07]} 51. Rc7+ {[%clk 0:00:17]}  Kd6 {[%clk 0:00:07]} 52. Rf7 {[%clk 0:00:17]}  Ke5 {[%clk 0:00:07]} 53. Re7+ {[%clk 0:00:17]}  Kd4 {[%clk 0:00:08]} 54. Re6 {[%clk 0:00:18]}  h4+ {[%clk 0:00:08]} 55. Kh3 {[%clk 0:00:18]}  Ra1 {[%clk 0:00:07]} 56. Rxf6 {[%clk 0:00:18]}  Ke3 {[%clk 0:00:08]} 57. d6 {[%clk 0:00:17]}  Kf4 {[%clk 0:00:08]} 58. Kh2 {[%clk 0:00:16]}  Rd1 {[%clk 0:00:06]} 59. Rg6 {[%clk 0:00:15]}  Rd2 {[%clk 0:00:01]} 60. f6 {[%clk 0:00:14]} 1-0


[Site "https://www.chess.com"]

[Event "Titled Tuesday Blitz November 22 Early 2022"]
[White "Kollars, Dmitrij"]
[Black "Baskakov, Egor"]
[WhiteFideId "12909572"]
[BlackFideId "24197866"]
[WhiteElo "2584"]
[BlackElo "2211"]
[Result "0-1"]
[Round "04"]
[TimeControl "180+1"]
[Date "2022.11.22"]
[WhiteClock "0:00:05"]
[BlackClock "0:00:08"]

1. e4 {[%clk 0:03:00]}  c5 {[%clk 0:02:48]} 2. c3 {[%clk 0:02:59]}  Nf6 {[%clk 0:02:42]} 3. e5 {[%clk 0:03:00]}  Nd5 {[%clk 0:02:42]} 4. Bc4 {[%clk 0:03:00]}  Nb6 {[%clk 0:02:42]} 5. Bb3 {[%clk 0:03:01]}  g6 {[%clk 0:02:41]} 6. Nf3 {[%clk 0:02:58]}  Bg7 {[%clk 0:02:41]} 7. d4 {[%clk 0:02:55]}  cxd4 {[%clk 0:02:41]} 8. cxd4 {[%clk 0:02:56]}  Nc6 {[%clk 0:02:38]} 9. Ng5 {[%clk 0:02:37]}  d5 {[%clk 0:02:32]} 10. f4 {[%clk 0:02:28]}  h6 {[%clk 0:02:30]} 11. Nf3 {[%clk 0:02:28]}  Bg4 {[%clk 0:02:29]} 12. Be3 {[%clk 0:02:28]}  e6 {[%clk 0:02:29]} 13. Nbd2 {[%clk 0:02:28]}  Rc8 {[%clk 0:02:27]} 14. O-O {[%clk 0:02:27]}  O-O {[%clk 0:02:25]} 15. h3 {[%clk 0:02:24]}  Bf5 {[%clk 0:02:25]} 16. Qe2 {[%clk 0:01:58]}  Na5 {[%clk 0:02:23]} 17. Rac1 {[%clk 0:01:55]}  Qd7 {[%clk 0:02:22]} 18. Nh4 {[%clk 0:01:43]}  Be4 {[%clk 0:02:21]} 19. Bf2 {[%clk 0:01:41]}  Rxc1 {[%clk 0:02:14]} 20. Rxc1 {[%clk 0:01:42]}  Nxb3 {[%clk 0:02:11]} 21. axb3 {[%clk 0:01:43]}  Rc8 {[%clk 0:02:09]} 22. Rxc8+ {[%clk 0:01:42]}  Qxc8 {[%clk 0:02:10]} 23. Nxe4 {[%clk 0:01:42]}  dxe4 {[%clk 0:02:11]} 24. Qxe4 {[%clk 0:01:43]}  Qc1+ {[%clk 0:02:10]} 25. Kh2 {[%clk 0:01:33]}  Qxb2 {[%clk 0:02:07]} 26. Bg1 {[%clk 0:01:22]}  Nd5 {[%clk 0:02:06]} 27. f5 {[%clk 0:01:23]}  gxf5 {[%clk 0:01:53]} 28. Nxf5 {[%clk 0:01:23]}  Qxb3 {[%clk 0:01:53]} 29. Nd6 {[%clk 0:01:11]}  Qd1 {[%clk 0:01:39]} 30. Qh4 {[%clk 0:01:03]}  Nc3 {[%clk 0:01:23]} 31. Ne8 {[%clk 0:00:37]}  Qc1 {[%clk 0:01:07]} 32. Qg3 {[%clk 0:00:34]}  Qxg1+ {[%clk 0:01:07]} 33. Kxg1 {[%clk 0:00:32]}  Ne2+ {[%clk 0:01:07]} 34. Kf2 {[%clk 0:00:33]}  Nxg3 {[%clk 0:01:08]} 35. Kxg3 {[%clk 0:00:34]}  b5 {[%clk 0:01:06]} 36. Kf3 {[%clk 0:00:34]}  a5 {[%clk 0:01:06]} 37. Ke4 {[%clk 0:00:34]}  a4 {[%clk 0:01:04]} 38. Kd3 {[%clk 0:00:34]}  b4 {[%clk 0:01:05]} 39. Nd6 {[%clk 0:00:26]}  Bf8 {[%clk 0:01:04]} 40. Ne4 {[%clk 0:00:24]}  Be7 {[%clk 0:01:03]} 41. Kc4 {[%clk 0:00:23]}  b3 {[%clk 0:00:53]} 42. Kc3 {[%clk 0:00:14]}  Kf8 {[%clk 0:00:53]} 43. g4 {[%clk 0:00:09]}  Ke8 {[%clk 0:00:53]} 44. Kb2 {[%clk 0:00:10]}  Kd7 {[%clk 0:00:52]} 45. Nc3 {[%clk 0:00:10]}  Kc6 {[%clk 0:00:48]} 46. Nxa4 {[%clk 0:00:07]}  Kd5 {[%clk 0:00:48]} 47. Kc3 {[%clk 0:00:06]}  Bh4 {[%clk 0:00:41]} 48. Nb2 {[%clk 0:00:04]}  Bf2 {[%clk 0:00:38]} 49. Kxb3 {[%clk 0:00:05]}  Bxd4 {[%clk 0:00:38]} 50. Nd3 {[%clk 0:00:06]}  Ke4 {[%clk 0:00:36]} 51. Kc4 {[%clk 0:00:04]}  Bxe5 {[%clk 0:00:37]} 52. Nc5+ {[%clk 0:00:05]}  Kf3 {[%clk 0:00:37]} 53. Kd3 {[%clk 0:00:05]}  Kg3 {[%clk 0:00:36]} 54. Ke4 {[%clk 0:00:05]}  Bd6 {[%clk 0:00:36]} 55. Nd7 {[%clk 0:00:03]}  Kxh3 {[%clk 0:00:34]} 56. Kf3 {[%clk 0:00:03]}  Kh4 {[%clk 0:00:31]} 57. Nf6 {[%clk 0:00:04]}  Be7 {[%clk 0:00:31]} 58. Ne4 {[%clk 0:00:04]}  h5 {[%clk 0:00:28]} 59. gxh5 {[%clk 0:00:03]}  Kxh5 {[%clk 0:00:29]} 60. Kf4 {[%clk 0:00:04]}  Kg6 {[%clk 0:00:28]} 61. Ke5 {[%clk 0:00:04]}  Bf8 {[%clk 0:00:27]} 62. Nf2 {[%clk 0:00:03]}  Bg7+ {[%clk 0:00:27]} 63. Kd6 {[%clk 0:00:03]}  Kf5 {[%clk 0:00:27]} 64. Nd1 {[%clk 0:00:03]}  Bh6 {[%clk 0:00:23]} 65. Ke7 {[%clk 0:00:03]}  f6 {[%clk 0:00:23]} 66. Kd6 {[%clk 0:00:03]}  e5 {[%clk 0:00:23]} 67. Kd5 {[%clk 0:00:04]}  Bf4 {[%clk 0:00:21]} 68. Nc3 {[%clk 0:00:04]}  Kg4 {[%clk 0:00:20]} 69. Ne4 {[%clk 0:00:03]}  f5 {[%clk 0:00:21]} 70. Nd6 {[%clk 0:00:03]}  Bh2 {[%clk 0:00:16]} 71. Ke6 {[%clk 0:00:04]}  f4 {[%clk 0:00:11]} 72. Ne4 {[%clk 0:00:04]}  f3 {[%clk 0:00:10]} 73. Kd5 {[%clk 0:00:05]}  Kf4 {[%clk 0:00:10]} 74. Nf2 {[%clk 0:00:05]}  Bg3 {[%clk 0:00:09]} 75. Ne4 {[%clk 0:00:03]}  f2 {[%clk 0:00:08]} 76. Nd2 {[%clk 0:00:03]}  Ke3 {[%clk 0:00:07]} 77. Nf1+ {[%clk 0:00:04]}  Kf3 {[%clk 0:00:08]} 78. Kc4 {[%clk 0:00:05]}  e4 {[%clk 0:00:07]} 79. Kd4 {[%clk 0:00:05]}  Bf4 {[%clk 0:00:08]} 0-1


[Site "https://www.chess.com"]

[Event "Titled Tuesday Blitz November 22 Early 2022"]
[White "Kosakowski, Jakub"]
[Black "Crevatin, Leo"]
[WhiteFideId "1185080"]
[BlackFideId "1726307"]
[WhiteElo "2463"]
[BlackElo "2208"]
[Result "1-0"]
[Round "04"]
[TimeControl "180+1"]
[Date "2022.11.23"]
[WhiteClock "0:02:25"]
[BlackClock "0:01:17"]

1. e4 {[%clk 0:03:00]}  c5 {[%clk 0:02:59]} 2. Nf3 {[%clk 0:03:00]}  d6 {[%clk 0:03:00]} 3. d4 {[%clk 0:03:00]}  cxd4 {[%clk 0:03:00]} 4. Nxd4 {[%clk 0:03:01]}  Nf6 {[%clk 0:03:01]} 5. Nc3 {[%clk 0:03:01]}  Nc6 {[%clk 0:03:01]} 6. Bg5 {[%clk 0:02:54]}  e6 {[%clk 0:03:01]} 7. Qd3 {[%clk 0:02:54]}  a6 {[%clk 0:02:34]} 8. Nxc6 {[%clk 0:02:53]}  bxc6 {[%clk 0:02:35]} 9. O-O-O {[%clk 0:02:53]}  Be7 {[%clk 0:02:31]} 10. Qg3 {[%clk 0:02:52]}  Qc7 {[%clk 0:02:23]} 11. Be2 {[%clk 0:02:43]}  Rb8 {[%clk 0:02:17]} 12. e5 {[%clk 0:02:37]}  dxe5 {[%clk 0:02:15]} 13. Bxf6 {[%clk 0:02:37]}  gxf6 {[%clk 0:02:12]} 14. Qg7 {[%clk 0:02:36]}  Rf8 {[%clk 0:02:11]} 15. Ne4 {[%clk 0:02:36]}  f5 {[%clk 0:01:55]} 16. Nf6+ {[%clk 0:02:36]}  Bxf6 {[%clk 0:01:55]} 17. Qxf6 {[%clk 0:02:37]}  e4 {[%clk 0:01:52]} 18. Rd2 {[%clk 0:02:26]}  Qe7 {[%clk 0:01:50]} 19. Qe5 {[%clk 0:02:26]}  Ra8 {[%clk 0:01:24]} 20. Rhd1 {[%clk 0:02:25]}  f6 {[%clk 0:01:17]} 21. Bh5+ {[%clk 0:02:25]} 1-0


[Site "https://www.chess.com"]

[Event "Titled Tuesday Blitz November 22 Early 2022"]
[White "Kouskoutis, Georgios-Alexandros"]
[Black "Maung, Maung Kyaw Zaw Hein"]
[WhiteFideId "4234049"]
[BlackFideId "13001698"]
[WhiteElo "2187"]
[BlackElo "2019"]
[Result "0-1"]
[Round "04"]
[TimeControl "180+1"]
[Date "2022.11.23"]
[WhiteClock "0:00:04"]
[BlackClock "0:00:28"]

1. Nf3 {[%clk 0:03:00]}  Nf6 {[%clk 0:02:59]} 2. g3 {[%clk 0:03:00]}  b6 {[%clk 0:02:59]} 3. Bg2 {[%clk 0:03:01]}  Bb7 {[%clk 0:03:00]} 4. O-O {[%clk 0:03:00]}  d6 {[%clk 0:02:59]} 5. c4 {[%clk 0:03:00]}  Nbd7 {[%clk 0:03:00]} 6. Nc3 {[%clk 0:03:00]}  e5 {[%clk 0:02:58]} 7. d4 {[%clk 0:02:48]}  Be7 {[%clk 0:02:54]} 8. Re1 {[%clk 0:02:26]}  O-O {[%clk 0:02:52]} 9. Nxe5 {[%clk 0:01:54]}  Bxg2 {[%clk 0:02:44]} 10. Nxd7 {[%clk 0:01:45]}  Qxd7 {[%clk 0:02:27]} 11. Kxg2 {[%clk 0:01:44]}  d5 {[%clk 0:02:24]} 12. cxd5 {[%clk 0:01:34]}  Nxd5 {[%clk 0:02:23]} 13. e4 {[%clk 0:01:35]}  Nxc3 {[%clk 0:02:13]} 14. bxc3 {[%clk 0:01:35]}  f5 {[%clk 0:02:06]} 15. e5 {[%clk 0:01:22]}  Rad8 {[%clk 0:02:03]} 16. Qf3 {[%clk 0:00:58]}  b5 {[%clk 0:01:54]} 17. h4 {[%clk 0:00:50]}  b4 {[%clk 0:01:47]} 18. Bb2 {[%clk 0:00:39]}  c5 {[%clk 0:01:38]} 19. Rad1 {[%clk 0:00:28]}  f4 {[%clk 0:01:29]} 20. dxc5 {[%clk 0:00:22]}  Qe6 {[%clk 0:01:15]} 21. Rxd8 {[%clk 0:00:16]}  Bxd8 {[%clk 0:01:11]} 22. cxb4 {[%clk 0:00:08]}  fxg3 {[%clk 0:01:10]} 23. Qxg3 {[%clk 0:00:08]}  a5 {[%clk 0:00:56]} 24. Qb3 {[%clk 0:00:05]}  Qxb3 {[%clk 0:00:54]} 25. axb3 {[%clk 0:00:06]}  axb4 {[%clk 0:00:54]} 26. e6 {[%clk 0:00:06]}  Be7 {[%clk 0:00:55]} 27. c6 {[%clk 0:00:06]}  Rc8 {[%clk 0:00:55]} 28. Rc1 {[%clk 0:00:07]}  g5 {[%clk 0:00:52]} 29. Be5 {[%clk 0:00:06]}  gxh4 {[%clk 0:00:43]} 30. c7 {[%clk 0:00:07]}  h5 {[%clk 0:00:42]} 31. Rd1 {[%clk 0:00:07]}  Kh7 {[%clk 0:00:40]} 32. Rd8 {[%clk 0:00:07]}  Bxd8 {[%clk 0:00:39]} 33. cxd8=Q {[%clk 0:00:07]}  Rxd8 {[%clk 0:00:39]} 34. Bf6 {[%clk 0:00:07]}  Re8 {[%clk 0:00:39]} 35. e7 {[%clk 0:00:07]}  Kg6 {[%clk 0:00:38]} 36. Bxh4 {[%clk 0:00:08]}  Kf7 {[%clk 0:00:38]} 37. Kh3 {[%clk 0:00:08]}  Rc8 {[%clk 0:00:38]} 38. Bg3 {[%clk 0:00:04]}  Rc3 {[%clk 0:00:38]} 39. Kh4 {[%clk 0:00:05]}  Rxb3 {[%clk 0:00:38]} 40. Bd6 {[%clk 0:00:04]}  Rd3 {[%clk 0:00:27]} 41. Bxb4 {[%clk 0:00:02]}  Rd4+ {[%clk 0:00:27]} 42. Kxh5 {[%clk 0:00:03]}  Rxb4 {[%clk 0:00:28]} 43. Kg5 {[%clk 0:00:03]}  Kxe7 {[%clk 0:00:28]} 44. f4 {[%clk 0:00:04]}  Kf7 {[%clk 0:00:28]} 45. f5 {[%clk 0:00:04]}  Rb5 {[%clk 0:00:28]} 0-1


[Site "https://www.chess.com"]

[Event "Titled Tuesday Blitz November 22 Early 2022"]
[White "Kovacevic, Radmila"]
[Black "Chan, Kim Yew"]
[WhiteFideId "933171"]
[BlackFideId "5717981"]
[WhiteElo "2208"]
[BlackElo "2206"]
[Result "1-0"]
[Round "04"]
[TimeControl "180+1"]
[Date "2022.11.23"]
[WhiteClock "0:00:50"]
[BlackClock "0:00:15"]

1. e4 {[%clk 0:02:57]}  c5 {[%clk 0:02:59]} 2. Be2 {[%clk 0:02:56]}  Nc6 {[%clk 0:02:51]} 3. f4 {[%clk 0:02:56]}  d5 {[%clk 0:02:47]} 4. d3 {[%clk 0:02:56]}  e6 {[%clk 0:02:27]} 5. Nf3 {[%clk 0:02:54]}  g6 {[%clk 0:02:27]} 6. O-O {[%clk 0:02:51]}  Bg7 {[%clk 0:02:27]} 7. c3 {[%clk 0:02:51]}  Nge7 {[%clk 0:02:27]} 8. Qe1 {[%clk 0:02:50]}  b5 {[%clk 0:02:15]} 9. Qh4 {[%clk 0:02:49]}  b4 {[%clk 0:02:09]} 10. g4 {[%clk 0:02:49]}  f5 {[%clk 0:01:52]} 11. gxf5 {[%clk 0:02:31]}  exf5 {[%clk 0:01:44]} 12. e5 {[%clk 0:02:30]}  bxc3 {[%clk 0:01:42]} 13. bxc3 {[%clk 0:02:30]}  O-O {[%clk 0:01:31]} 14. Ba3 {[%clk 0:02:21]}  d4 {[%clk 0:01:09]} 15. Bxc5 {[%clk 0:02:13]}  dxc3 {[%clk 0:00:57]} 16. Nxc3 {[%clk 0:02:14]}  Qa5 {[%clk 0:00:54]} 17. Bxe7 {[%clk 0:01:53]}  Nxe7 {[%clk 0:00:55]} 18. Rac1 {[%clk 0:01:48]}  Nd5 {[%clk 0:00:43]} 19. Nxd5 {[%clk 0:01:32]}  Qxd5 {[%clk 0:00:44]} 20. Rc7 {[%clk 0:01:24]}  Bb7 {[%clk 0:00:34]} 21. Rb1 {[%clk 0:01:09]}  Rab8 {[%clk 0:00:14]} 22. Qe7 {[%clk 0:01:07]}  Rf7 {[%clk 0:00:13]} 23. Qxf7+ {[%clk 0:00:53]}  Qxf7 {[%clk 0:00:14]} 24. Rxf7 {[%clk 0:00:51]}  Kxf7 {[%clk 0:00:15]} 25. Ng5+ {[%clk 0:00:51]}  Ke7 {[%clk 0:00:15]} 26. Bf3 {[%clk 0:00:50]} 1-0


[Site "https://www.chess.com"]

[Event "Titled Tuesday Blitz November 22 Early 2022"]
[White "Kukreja, Sankalp"]
[Black "Samunenkov, Ihor"]
[WhiteFideId "45027676"]
[BlackFideId "14187086"]
[WhiteElo "2154"]
[BlackElo "2441"]
[Result "0-1"]
[Round "04"]
[TimeControl "180+1"]
[Date "2022.11.23"]
[WhiteClock "0:00:59"]
[BlackClock "0:00:05"]

1. e4 {[%clk 0:03:00]}  c6 {[%clk 0:02:59]} 2. d4 {[%clk 0:03:00]}  d5 {[%clk 0:02:59]} 3. exd5 {[%clk 0:03:01]}  cxd5 {[%clk 0:03:00]} 4. c4 {[%clk 0:03:01]}  Nf6 {[%clk 0:03:00]} 5. Nc3 {[%clk 0:03:02]}  Nc6 {[%clk 0:03:00]} 6. Nf3 {[%clk 0:03:02]}  Bg4 {[%clk 0:03:01]} 7. cxd5 {[%clk 0:03:01]}  Nxd5 {[%clk 0:03:02]} 8. Qb3 {[%clk 0:03:01]}  Bxf3 {[%clk 0:03:02]} 9. gxf3 {[%clk 0:03:01]}  e6 {[%clk 0:03:02]} 10. Qxb7 {[%clk 0:02:59]}  Nxd4 {[%clk 0:03:03]} 11. Bb5+ {[%clk 0:02:59]}  Nxb5 {[%clk 0:03:03]} 12. Qc6+ {[%clk 0:03:00]}  Ke7 {[%clk 0:03:04]} 13. Qxb5 {[%clk 0:03:00]}  Qd7 {[%clk 0:03:04]} 14. Nxd5+ {[%clk 0:02:58]}  Qxd5 {[%clk 0:03:05]} 15. Qxd5 {[%clk 0:02:58]}  exd5 {[%clk 0:03:06]} 16. Be3 {[%clk 0:02:57]}  Ke6 {[%clk 0:03:06]} 17. O-O-O {[%clk 0:02:58]}  Bb4 {[%clk 0:03:05]} 18. a3 {[%clk 0:02:57]}  Rhc8+ {[%clk 0:03:01]} 19. Kb1 {[%clk 0:02:56]}  Bc5 {[%clk 0:02:51]} 20. Rhe1 {[%clk 0:02:54]}  Bxe3 {[%clk 0:02:49]} 21. Rxe3+ {[%clk 0:02:55]}  Kd6 {[%clk 0:02:50]} 22. Red3 {[%clk 0:02:55]}  Rc5 {[%clk 0:02:50]} 23. b4 {[%clk 0:02:56]}  Rb5 {[%clk 0:02:49]} 24. Ka2 {[%clk 0:02:56]}  a5 {[%clk 0:02:18]} 25. Kb3 {[%clk 0:02:54]}  axb4 {[%clk 0:02:14]} 26. axb4 {[%clk 0:02:55]}  Rab8 {[%clk 0:02:12]} 27. Rd4 {[%clk 0:02:54]}  R8b7 {[%clk 0:02:11]} 28. Rg1 {[%clk 0:02:53]}  g6 {[%clk 0:02:09]} 29. f4 {[%clk 0:02:50]}  Re7 {[%clk 0:02:03]} 30. Ra1 {[%clk 0:02:48]}  Reb7 {[%clk 0:01:54]} 31. Ra6+ {[%clk 0:02:46]}  R7b6 {[%clk 0:01:52]} 32. Rxb6+ {[%clk 0:02:34]}  Rxb6 {[%clk 0:01:52]} 33. Ka4 {[%clk 0:02:34]}  Ra6+ {[%clk 0:01:45]} 34. Kb3 {[%clk 0:02:34]}  Ra1 {[%clk 0:01:30]} 35. Rd2 {[%clk 0:02:28]}  Rh1 {[%clk 0:01:20]} 36. Rc2 {[%clk 0:02:25]}  Rxh2 {[%clk 0:00:52]} 37. b5 {[%clk 0:02:25]}  Rh1 {[%clk 0:00:53]} 38. Kb2 {[%clk 0:02:22]}  Re1 {[%clk 0:00:48]} 39. Rc8 {[%clk 0:02:06]}  Kd7 {[%clk 0:00:32]} 40. Rc5 {[%clk 0:01:56]}  Kd6 {[%clk 0:00:32]} 41. Rc6+ {[%clk 0:01:53]}  Kd7 {[%clk 0:00:33]} 42. Rc5 {[%clk 0:01:52]}  h5 {[%clk 0:00:08]} 43. b6 {[%clk 0:01:44]}  Re6 {[%clk 0:00:06]} 44. Rxd5+ {[%clk 0:01:25]}  Kc6 {[%clk 0:00:06]} 45. b7 {[%clk 0:01:23]}  Re8 {[%clk 0:00:02]} 46. Re5 {[%clk 0:01:12]}  Rb8 {[%clk 0:00:01]} 47. f5 {[%clk 0:01:12]}  Rxb7+ {[%clk 0:00:01]} 48. Kc3 {[%clk 0:01:12]}  Rb5 {[%clk 0:00:02]} 49. Re8 {[%clk 0:01:02]}  Rxf5 {[%clk 0:00:02]} 50. Rc8+ {[%clk 0:01:03]}  Kd7 {[%clk 0:00:02]} 51. Rh8 {[%clk 0:01:02]}  Rxf2 {[%clk 0:00:03]} 52. Kd4 {[%clk 0:01:02]}  Ke6 {[%clk 0:00:03]} 53. Ke3 {[%clk 0:01:03]}  Rf5 {[%clk 0:00:03]} 54. Ke4 {[%clk 0:01:03]}  Kf6 {[%clk 0:00:04]} 55. Ra8 {[%clk 0:01:02]}  Re5+ {[%clk 0:00:04]} 56. Kf4 {[%clk 0:01:01]}  Re6 {[%clk 0:00:05]} 57. Ra5 {[%clk 0:01:01]}  Rb6 {[%clk 0:00:05]} 58. Ra4 {[%clk 0:01:00]}  g5+ {[%clk 0:00:05]} 59. Ke4 {[%clk 0:01:00]}  Kg6 {[%clk 0:00:05]} 60. Rc4 {[%clk 0:00:59]}  Re6+ {[%clk 0:00:05]} 61. Kd5 {[%clk 0:00:59]}  h4 {[%clk 0:00:05]} 62. Rc3 {[%clk 0:00:59]}  g4 {[%clk 0:00:05]} 0-1


[Site "https://www.chess.com"]